[Event "Late-Titled-Tuesday-Blitz-June-25-2024"]
[Site "Chess.com"]
[Date "2024.06.25"]
[Round "7"]
[White "Kaustubh_Kodihalli"]
[Black "Jagerrmeisterr"]
[Result "0-1"]
[WhiteElo "2463"]
[BlackElo "2671"]
[TimeControl "180+1"]
[EndTime "15:16:32 PDT"]
[Termination "Jagerrmeisterr won by checkmate"]

1. e4 {[%clk 0:03:00.9]} 1... c6 {[%clk 0:02:58.3]} 2. d4 {[%clk 0:03:00]} 2...
d5 {[%clk 0:02:58.4]} 3. e5 {[%clk 0:03:00.3]} 3... c5 {[%clk 0:02:58.2]} 4.
dxc5 {[%clk 0:03:00.1]} 4... Nc6 {[%clk 0:02:58.3]} 5. Nf3 {[%clk 0:03:00.3]}
5... Bg4 {[%clk 0:02:58.4]} 6. c3 {[%clk 0:02:59]} 6... a6 {[%clk 0:02:48.9]} 7.
b4 {[%clk 0:02:55.9]} 7... Bxf3 {[%clk 0:02:37.7]} 8. Qxf3 {[%clk 0:02:56.8]}
8... Nxe5 {[%clk 0:02:38]} 9. Qg3 {[%clk 0:02:54]} 9... Nc6 {[%clk 0:02:31.1]}
10. Be2 {[%clk 0:02:53.9]} 10... Nf6 {[%clk 0:02:30.5]} 11. O-O {[%clk
0:02:52.7]} 11... e6 {[%clk 0:02:18.3]} 12. Rd1 {[%clk 0:02:51.7]} 12... Ne4
{[%clk 0:02:17.6]} 13. Qe3 {[%clk 0:02:49.8]} 13... Qh4 {[%clk 0:02:14.1]} 14.
g3 {[%clk 0:02:43]} 14... Qh3 {[%clk 0:02:01]} 15. Bf3 {[%clk 0:02:42]} 15...
Ne5 {[%clk 0:01:37.8]} 16. Bg2 {[%clk 0:02:08.9]} 16... Qh5 {[%clk 0:01:33.5]}
17. f3 {[%clk 0:02:07.8]} 17... Nc4 {[%clk 0:01:31]} 18. Qe2 {[%clk 0:02:01.1]}
18... Nf6 {[%clk 0:01:20.2]} 19. Re1 {[%clk 0:01:57.2]} 19... Be7 {[%clk
0:01:16.6]} 20. Nd2 {[%clk 0:01:56.6]} 20... b5 {[%clk 0:01:08.3]} 21. Nxc4
{[%clk 0:01:50.6]} 21... bxc4 {[%clk 0:01:06.1]} 22. Be3 {[%clk 0:01:33.4]}
22... O-O {[%clk 0:01:01.2]} 23. Bd4 {[%clk 0:01:33.3]} 23... Qg6 {[%clk
0:00:52.1]} 24. f4 {[%clk 0:01:31.4]} 24... Rfe8 {[%clk 0:00:43.3]} 25. Rab1
{[%clk 0:01:27.1]} 25... h5 {[%clk 0:00:40.2]} 26. Bf3 {[%clk 0:01:03]} 26... h4
{[%clk 0:00:36.8]} 27. g4 {[%clk 0:01:02.1]} 27... Nd7 {[%clk 0:00:31.3]} 28.
Kh1 {[%clk 0:00:53.5]} 28... Bf6 {[%clk 0:00:29]} 29. c6 {[%clk 0:00:46.6]}
29... Nb8 {[%clk 0:00:29.3]} 30. f5 {[%clk 0:00:39.1]} 30... Qh6 {[%clk
0:00:25.6]} 31. Bxd5 {[%clk 0:00:37.7]} 31... Bxd4 {[%clk 0:00:23.3]} 32. cxd4
{[%clk 0:00:38.6]} 32... Ra7 {[%clk 0:00:19.9]} 33. fxe6 {[%clk 0:00:35.4]}
33... fxe6 {[%clk 0:00:20.1]} 34. Bxe6+ {[%clk 0:00:34.9]} 34... Kh8 {[%clk
0:00:20.3]} 35. d5 {[%clk 0:00:34.2]} 35... Rae7 {[%clk 0:00:19.8]} 36. Qxc4
{[%clk 0:00:13.8]} 36... h3 {[%clk 0:00:19.4]} 37. Qd4 {[%clk 0:00:09.1]} 37...
Nxc6 {[%clk 0:00:18]} 38. dxc6 {[%clk 0:00:08.8]} 38... Rxe6 {[%clk 0:00:18.6]}
39. Rxe6 {[%clk 0:00:08.3]} 39... Qxe6 {[%clk 0:00:19.5]} 40. Rc1 {[%clk
0:00:07]} 40... Qe2 {[%clk 0:00:18.1]} 41. Qd5 {[%clk 0:00:01.3]} 41... Qe1+
{[%clk 0:00:17.9]} 42. Rxe1 {[%clk 0:00:02.2]} 42... Rxe1# {[%clk 0:00:18.4]}
0-1

[Event "Late-Titled-Tuesday-Blitz-June-25-2024"]
[Site "Chess.com"]
[Date "2024.06.25"]
[Round "7"]
[White "AthanasiusLefebvre"]
[Black "drdaro"]
[Result "0-1"]
[WhiteElo "2075"]
[BlackElo "2314"]
[TimeControl "180+1"]
[EndTime "15:16:32 PDT"]
[Termination "drdaro won on time"]

1. d3 {[%clk 0:03:00.9]} 1... g6 {[%clk 0:03:00.9]} 2. g3 {[%clk 0:02:58.9]}
2... Bg7 {[%clk 0:03:00.9]} 3. Nf3 {[%clk 0:02:59.3]} 3... d6 {[%clk 0:03:01.6]}
4. Bg2 {[%clk 0:02:58.9]} 4... e5 {[%clk 0:03:02.3]} 5. O-O {[%clk 0:02:59.4]}
5... f5 {[%clk 0:03:02.8]} 6. c4 {[%clk 0:02:59.9]} 6... Nf6 {[%clk 0:03:03.3]}
7. Nc3 {[%clk 0:03:00.2]} 7... O-O {[%clk 0:03:03.9]} 8. Rb1 {[%clk 0:03:00.6]}
8... a5 {[%clk 0:03:03.7]} 9. a3 {[%clk 0:03:00.7]} 9... c6 {[%clk 0:03:03.8]}
10. b4 {[%clk 0:03:00.9]} 10... axb4 {[%clk 0:03:04.7]} 11. axb4 {[%clk
0:03:01.2]} 11... Be6 {[%clk 0:03:05.3]} 12. b5 {[%clk 0:03:00.4]} 12... h6
{[%clk 0:03:03.4]} 13. bxc6 {[%clk 0:03:00]} 13... bxc6 {[%clk 0:03:03.9]} 14.
Be3 {[%clk 0:02:40.6]} 14... e4 {[%clk 0:03:02.9]} 15. dxe4 {[%clk 0:02:34.5]}
15... fxe4 {[%clk 0:03:02.4]} 16. Nh4 {[%clk 0:02:31]} 16... Bxc4 {[%clk
0:02:55]} 17. Nxg6 {[%clk 0:02:23.9]} 17... Re8 {[%clk 0:02:54]} 18. Bb6 {[%clk
0:02:05.3]} 18... Qd7 {[%clk 0:02:42.2]} 19. Qc2 {[%clk 0:01:43.1]} 19... d5
{[%clk 0:02:40.9]} 20. Rfd1 {[%clk 0:01:33.3]} 20... Qf7 {[%clk 0:02:31.1]} 21.
Nf4 {[%clk 0:01:31.2]} 21... Nbd7 {[%clk 0:02:32]} 22. Bd4 {[%clk 0:01:21.2]}
22... c5 {[%clk 0:02:32.3]} 23. Bxf6 {[%clk 0:01:19.1]} 23... Nxf6 {[%clk
0:02:31.5]} 24. Nb5 {[%clk 0:01:04.2]} 24... Ra2 {[%clk 0:02:25.1]} 25. Rb2
{[%clk 0:00:52.8]} 25... Rxb2 {[%clk 0:02:11]} 26. Qxb2 {[%clk 0:00:52.8]} 26...
Rb8 {[%clk 0:02:11.5]} 27. Bh3 {[%clk 0:00:34.7]} 27... Rxb5 {[%clk 0:02:02.9]}
28. Qxb5 {[%clk 0:00:34.2]} 28... Bxb5 {[%clk 0:02:02.1]} 29. Be6 {[%clk
0:00:34.2]} 29... Qxe6 {[%clk 0:01:49.7]} 30. Nxe6 {[%clk 0:00:33.7]} 30... Bxe2
{[%clk 0:01:40.9]} 31. Rd2 {[%clk 0:00:30.4]} 31... Bc4 {[%clk 0:01:35.8]} 32.
Nxc5 {[%clk 0:00:29.8]} 32... Ng4 {[%clk 0:01:35]} 33. Ne6 {[%clk 0:00:18.2]}
33... Bc3 {[%clk 0:01:30.3]} 34. Rc2 {[%clk 0:00:16.1]} 34... Be1 {[%clk
0:01:27.9]} 35. Nd4 {[%clk 0:00:13.5]} 35... Kf7 {[%clk 0:01:19.8]} 36. h3
{[%clk 0:00:13.6]} 36... Ne5 {[%clk 0:01:16.2]} 37. Kg2 {[%clk 0:00:11.5]} 37...
Kf6 {[%clk 0:01:15]} 38. Rb2 {[%clk 0:00:10.7]} 38... Bc3 {[%clk 0:01:12.1]} 39.
Rb6+ {[%clk 0:00:10.5]} 39... Kf7 {[%clk 0:01:09.9]} 40. Nf5 {[%clk 0:00:10.2]}
40... Kf8 {[%clk 0:00:48.1]} 41. Nxh6 {[%clk 0:00:09.7]} 41... d4 {[%clk
0:00:47.6]} 42. Rb8+ {[%clk 0:00:04.4]} 42... Ke7 {[%clk 0:00:43.6]} 43. Nf5+
{[%clk 0:00:04.6]} 43... Kd7 {[%clk 0:00:44]} 44. g4 {[%clk 0:00:04.7]} 44... d3
{[%clk 0:00:43.7]} 45. Rb1 {[%clk 0:00:03.4]} 45... d2 {[%clk 0:00:43.5]} 46.
Ne3 {[%clk 0:00:03.3]} 46... Be2 {[%clk 0:00:40.3]} 47. Rb7+ {[%clk 0:00:01.8]}
47... Kc6 {[%clk 0:00:38.9]} 48. Re7 {[%clk 0:00:01.5]} 48... Bd4 {[%clk
0:00:35]} 0-1

[Event "Late-Titled-Tuesday-Blitz-June-25-2024"]
[Site "Chess.com"]
[Date "2024.06.25"]
[Round "7"]
[White "Gyulamiryan-koryun"]
[Black "NigiriSushies"]
[Result "1-0"]
[WhiteElo "1827"]
[BlackElo "2280"]
[TimeControl "180+1"]
[EndTime "15:16:33 PDT"]
[Termination "Gyulamiryan-koryun won on time"]

1. e4 {[%clk 0:03:00.9]} 1... b6 {[%clk 0:02:56.8]} 2. d4 {[%clk 0:02:59.1]}
2... Bb7 {[%clk 0:02:57.2]} 3. Nc3 {[%clk 0:02:58.5]} 3... e6 {[%clk 0:02:57.8]}
4. f4 {[%clk 0:02:58.2]} 4... Bb4 {[%clk 0:02:46.7]} 5. Bd3 {[%clk 0:02:56.3]}
5... Nf6 {[%clk 0:02:45.2]} 6. Qe2 {[%clk 0:02:49.5]} 6... d5 {[%clk 0:02:33.3]}
7. e5 {[%clk 0:02:47.9]} 7... Ne4 {[%clk 0:02:32.4]} 8. Bd2 {[%clk 0:02:34.5]}
8... Nxd2 {[%clk 0:02:12.7]} 9. Qxd2 {[%clk 0:02:33.5]} 9... c5 {[%clk
0:02:06.6]} 10. Bb5+ {[%clk 0:02:25.2]} 10... Nc6 {[%clk 0:01:37.8]} 11. a3
{[%clk 0:02:20.6]} 11... cxd4 {[%clk 0:01:26.5]} 12. Bxc6+ {[%clk 0:02:11.9]}
12... Bxc6 {[%clk 0:01:23.3]} 13. axb4 {[%clk 0:02:06.3]} 13... dxc3 {[%clk
0:01:19.1]} 14. bxc3 {[%clk 0:01:59.9]} 14... O-O {[%clk 0:01:14.5]} 15. Nf3
{[%clk 0:01:59.8]} 15... Bb5 {[%clk 0:01:10.4]} 16. Kf2 {[%clk 0:01:44]} 16...
Qc7 {[%clk 0:01:05.8]} 17. Nd4 {[%clk 0:01:39.9]} 17... Bc4 {[%clk 0:01:02.7]}
18. Ra3 {[%clk 0:01:32.5]} 18... h6 {[%clk 0:00:55.9]} 19. Rha1 {[%clk
0:01:31.8]} 19... Rfb8 {[%clk 0:00:51]} 20. g4 {[%clk 0:01:18.5]} 20... a5
{[%clk 0:00:41.1]} 21. h4 {[%clk 0:01:08.5]} 21... Qd8 {[%clk 0:00:24.5]} 22. g5
{[%clk 0:01:07.5]} 22... hxg5 {[%clk 0:00:23.3]} 23. hxg5 {[%clk 0:01:06.6]}
23... axb4 {[%clk 0:00:21.2]} 24. Rxa8 {[%clk 0:01:04.6]} 24... Rxa8 {[%clk
0:00:21.3]} 25. Rh1 {[%clk 0:01:03.1]} 25... bxc3 {[%clk 0:00:15.4]} 26. Qxc3
{[%clk 0:01:02.7]} 26... Qe7 {[%clk 0:00:14.6]} 27. Qh3 {[%clk 0:01:01.6]} 27...
f5 {[%clk 0:00:05.9]} 28. Qh7+ {[%clk 0:00:56]} 28... Kf7 {[%clk 0:00:05.1]} 29.
g6+ {[%clk 0:00:56.3]} 29... Ke8 {[%clk 0:00:05.2]} 30. Qh8+ {[%clk 0:00:55.9]}
30... Kd7 {[%clk 0:00:05.6]} 31. Qxa8 {[%clk 0:00:55.1]} 31... Qc5 {[%clk
0:00:06.1]} 32. Qa7+ {[%clk 0:00:53.1]} 32... Qc7 {[%clk 0:00:04.2]} 33. Qxc7+
{[%clk 0:00:52.7]} 33... Kxc7 {[%clk 0:00:05.1]} 34. Rh7 {[%clk 0:00:51]} 34...
b5 {[%clk 0:00:06]} 35. Rxg7+ {[%clk 0:00:51.1]} 35... Kb6 {[%clk 0:00:06.9]}
36. Re7 {[%clk 0:00:50.3]} 36... Kc5 {[%clk 0:00:07.8]} 37. c3 {[%clk
0:00:49.2]} 37... b4 {[%clk 0:00:07.8]} 38. Rc7+ {[%clk 0:00:47.8]} 38... Kb6
{[%clk 0:00:07.2]} 39. Rxc4 {[%clk 0:00:44.4]} 39... dxc4 {[%clk 0:00:08.1]} 40.
cxb4 {[%clk 0:00:44]} 40... c3 {[%clk 0:00:08.1]} 41. g7 {[%clk 0:00:44.9]}
41... c2 {[%clk 0:00:08.1]} 42. g8=Q {[%clk 0:00:45.7]} 42... c1=Q {[%clk
0:00:07.9]} 43. Qxe6+ {[%clk 0:00:45]} 43... Kb7 {[%clk 0:00:05.9]} 44. Qd7+
{[%clk 0:00:43.7]} 44... Kb6 {[%clk 0:00:04.9]} 45. Qb5+ {[%clk 0:00:42.2]}
45... Ka7 {[%clk 0:00:05.1]} 46. Qc5+ {[%clk 0:00:42.2]} 1-0

[Event "Late-Titled-Tuesday-Blitz-June-25-2024"]
[Site "Chess.com"]
[Date "2024.06.25"]
[Round "7"]
[White "guillembaches"]
[Black "nitpicker"]
[Result "1-0"]
[WhiteElo "2541"]
[BlackElo "2343"]
[TimeControl "180+1"]
[EndTime "15:16:34 PDT"]
[Termination "guillembaches won on time"]

1. e4 {[%clk 0:03:00.9]} 1... c5 {[%clk 0:02:59.3]} 2. Nf3 {[%clk 0:03:00.5]}
2... Nc6 {[%clk 0:02:58.9]} 3. Bc4 {[%clk 0:02:58.3]} 3... d6 {[%clk 0:02:51.7]}
4. O-O {[%clk 0:02:57.2]} 4... Nf6 {[%clk 0:02:49.1]} 5. Re1 {[%clk 0:02:56.7]}
5... e6 {[%clk 0:02:43.9]} 6. c3 {[%clk 0:02:33.5]} 6... d5 {[%clk 0:02:43.5]}
7. exd5 {[%clk 0:02:30.3]} 7... Nxd5 {[%clk 0:02:44.4]} 8. d4 {[%clk 0:02:28.7]}
8... cxd4 {[%clk 0:02:25.2]} 9. Nxd4 {[%clk 0:02:28.6]} 9... Nb6 {[%clk
0:02:06.7]} 10. Bb3 {[%clk 0:02:11.4]} 10... Bd7 {[%clk 0:01:43.3]} 11. Nf5
{[%clk 0:01:58.4]} 11... Qb8 {[%clk 0:01:32.2]} 12. Qf3 {[%clk 0:01:37.1]} 12...
Na5 {[%clk 0:00:37.5]} 13. Bf4 {[%clk 0:01:34.9]} 13... Qd8 {[%clk 0:00:38.1]}
14. Nd6+ {[%clk 0:01:26.3]} 14... Bxd6 {[%clk 0:00:36.5]} 15. Bxd6 {[%clk
0:01:26.9]} 15... Nxb3 {[%clk 0:00:34.1]} 16. axb3 {[%clk 0:01:24.7]} 16... Bc6
{[%clk 0:00:30.2]} 17. Qg3 {[%clk 0:01:22.5]} 17... Qf6 {[%clk 0:00:23]} 18. Nd2
{[%clk 0:01:02.2]} 18... Qg6 {[%clk 0:00:22.5]} 19. Nc4 {[%clk 0:00:43.1]} 19...
Nxc4 {[%clk 0:00:17.7]} 20. bxc4 {[%clk 0:00:41.6]} 20... a6 {[%clk 0:00:17.9]}
21. b4 {[%clk 0:00:36.5]} 21... Rd8 {[%clk 0:00:17.3]} 22. Rad1 {[%clk
0:00:27.6]} 22... Qxg3 {[%clk 0:00:15.7]} 23. hxg3 {[%clk 0:00:27.5]} 23... Bd7
{[%clk 0:00:13.5]} 24. f3 {[%clk 0:00:25.5]} 24... f6 {[%clk 0:00:13.8]} 25. Kf2
{[%clk 0:00:22.1]} 25... Kf7 {[%clk 0:00:14.1]} 26. Bc7 {[%clk 0:00:22.6]} 26...
Ke7 {[%clk 0:00:12.6]} 27. Bxd8+ {[%clk 0:00:21.5]} 27... Rxd8 {[%clk
0:00:13.5]} 28. c5 {[%clk 0:00:21]} 28... Rc8 {[%clk 0:00:13.8]} 29. Rd6 {[%clk
0:00:21]} 29... Bc6 {[%clk 0:00:13.2]} 30. Rexe6+ {[%clk 0:00:20.5]} 30... Kf7
{[%clk 0:00:12.5]} 31. Re2 {[%clk 0:00:19.9]} 31... Bb5 {[%clk 0:00:12.2]} 32.
Red2 {[%clk 0:00:18.9]} 32... Rc7 {[%clk 0:00:12.4]} 33. R6d4 {[%clk 0:00:18.6]}
33... Re7 {[%clk 0:00:12.3]} 34. c4 {[%clk 0:00:18.3]} 34... Bc6 {[%clk
0:00:13.1]} 35. Re2 {[%clk 0:00:17.9]} 35... Rc7 {[%clk 0:00:12]} 36. g4 {[%clk
0:00:17.7]} 36... Be8 {[%clk 0:00:10.6]} 37. Rd6 {[%clk 0:00:17.6]} 37... a5
{[%clk 0:00:10.6]} 38. bxa5 {[%clk 0:00:17.2]} 38... Rxc5 {[%clk 0:00:10.8]} 39.
a6 {[%clk 0:00:16.5]} 39... bxa6 {[%clk 0:00:09.9]} 40. Rxa6 {[%clk 0:00:16.5]}
40... Rxc4 {[%clk 0:00:10.2]} 41. Ra7+ {[%clk 0:00:16.7]} 41... Kg6 {[%clk
0:00:10.1]} 42. Rxe8 {[%clk 0:00:15.7]} 1-0

[Event "Late-Titled-Tuesday-Blitz-June-25-2024"]
[Site "Chess.com"]
[Date "2024.06.25"]
[Round "7"]
[White "th3d4rkness"]
[Black "vanyakuba"]
[Result "0-1"]
[WhiteElo "2261"]
[BlackElo "2451"]
[TimeControl "180+1"]
[EndTime "15:16:34 PDT"]
[Termination "vanyakuba won by resignation"]

1. e4 {[%clk 0:03:00.9]} 1... d5 {[%clk 0:02:59.9]} 2. exd5 {[%clk 0:02:59.5]}
2... Qxd5 {[%clk 0:03:00.8]} 3. Nc3 {[%clk 0:02:59.8]} 3... Qa5 {[%clk
0:03:00.7]} 4. Bc4 {[%clk 0:03:00.1]} 4... Nf6 {[%clk 0:02:59.7]} 5. Nf3 {[%clk
0:03:00.1]} 5... Bg4 {[%clk 0:02:59.5]} 6. h3 {[%clk 0:02:57.7]} 6... Bh5 {[%clk
0:02:59.3]} 7. g4 {[%clk 0:02:55.5]} 7... Bg6 {[%clk 0:02:59.5]} 8. Qe2 {[%clk
0:02:51.7]} 8... e6 {[%clk 0:02:56]} 9. Ne5 {[%clk 0:02:47.1]} 9... Nbd7 {[%clk
0:02:53.3]} 10. Nxg6 {[%clk 0:02:03.6]} 10... hxg6 {[%clk 0:02:54.2]} 11. d3
{[%clk 0:01:59.8]} 11... O-O-O {[%clk 0:02:52.5]} 12. Bd2 {[%clk 0:01:59.1]}
12... Nb6 {[%clk 0:02:31.6]} 13. Bb3 {[%clk 0:01:58.4]} 13... Qc5 {[%clk
0:01:56.5]} 14. O-O-O {[%clk 0:01:50.9]} 14... Qc6 {[%clk 0:01:51.7]} 15. Kb1
{[%clk 0:01:35.5]} 15... a5 {[%clk 0:01:50]} 16. a3 {[%clk 0:01:30]} 16... a4
{[%clk 0:01:48.9]} 17. Ba2 {[%clk 0:01:29.5]} 17... Bc5 {[%clk 0:01:47.8]} 18.
Be3 {[%clk 0:01:19.4]} 18... Bd4 {[%clk 0:01:47.6]} 19. Ne4 {[%clk 0:01:04.1]}
19... Nxe4 {[%clk 0:01:41]} 20. Bxd4 {[%clk 0:01:00.7]} 20... Rxd4 {[%clk
0:01:34.9]} 21. dxe4 {[%clk 0:00:56.7]} 21... Qxe4 {[%clk 0:01:33.7]} 22. Qxe4
{[%clk 0:00:35.1]} 22... Rxe4 {[%clk 0:01:33.5]} 23. Rd3 {[%clk 0:00:33.9]}
23... Rf4 {[%clk 0:01:25.3]} 24. f3 {[%clk 0:00:32.1]} 24... Rd8 {[%clk
0:01:19]} 25. Rhd1 {[%clk 0:00:30]} 25... Rxd3 {[%clk 0:01:11.2]} 26. Rxd3
{[%clk 0:00:30.2]} 26... g5 {[%clk 0:01:11.8]} 27. Kc1 {[%clk 0:00:30.5]} 27...
Nd7 {[%clk 0:01:09.9]} 28. Re3 {[%clk 0:00:21.5]} 28... Kd8 {[%clk 0:01:06.8]}
29. Kd2 {[%clk 0:00:21.4]} 29... Ke7 {[%clk 0:01:07.3]} 30. Ke2 {[%clk
0:00:20.1]} 30... Kd6 {[%clk 0:01:07.1]} 31. Rc3 {[%clk 0:00:18.3]} 31... c6
{[%clk 0:01:04.9]} 32. Rd3+ {[%clk 0:00:17.9]} 32... Ke7 {[%clk 0:01:04.4]} 33.
Ke3 {[%clk 0:00:18]} 33... Nc5 {[%clk 0:01:02.5]} 34. Rc3 {[%clk 0:00:17]} 34...
Kd6 {[%clk 0:01:02.2]} 35. b4 {[%clk 0:00:16.1]} 35... axb3 {[%clk 0:01:00.9]}
36. cxb3 {[%clk 0:00:16.5]} 36... Nd7 {[%clk 0:00:48.2]} 37. Rd3+ {[%clk
0:00:16.3]} 37... Ke7 {[%clk 0:00:47.2]} 38. b4 {[%clk 0:00:16.7]} 38... Ne5
{[%clk 0:00:46.7]} 39. Rd2 {[%clk 0:00:14.2]} 39... Rxf3+ {[%clk 0:00:38.9]} 40.
Ke4 {[%clk 0:00:13.9]} 40... f6 {[%clk 0:00:37.5]} 41. Bb1 {[%clk 0:00:12.2]}
41... Rxa3 {[%clk 0:00:27.4]} 42. Rb2 {[%clk 0:00:11.5]} 42... Rxh3 {[%clk
0:00:25.8]} 43. b5 {[%clk 0:00:11.8]} 43... c5 {[%clk 0:00:25.1]} 44. b6 {[%clk
0:00:10.9]} 44... Rh4 {[%clk 0:00:23.5]} 45. Ke3 {[%clk 0:00:08.6]} 45... Rxg4
{[%clk 0:00:23.8]} 46. Be4 {[%clk 0:00:09]} 46... Nc4+ {[%clk 0:00:23.6]} 0-1

[Event "Late-Titled-Tuesday-Blitz-June-25-2024"]
[Site "Chess.com"]
[Date "2024.06.25"]
[Round "7"]
[White "zsizsi99"]
[Black "Flopezin"]
[Result "0-1"]
[WhiteElo "2549"]
[BlackElo "2429"]
[TimeControl "180+1"]
[EndTime "15:16:35 PDT"]
[Termination "Flopezin won by resignation"]

1. e4 {[%clk 0:03:00.9]} 1... e5 {[%clk 0:03:00.4]} 2. Nf3 {[%clk 0:02:39]} 2...
Nc6 {[%clk 0:03:00.4]} 3. Bb5 {[%clk 0:02:38.9]} 3... a6 {[%clk 0:03:00.1]} 4.
Ba4 {[%clk 0:02:37.3]} 4... Nf6 {[%clk 0:03:00.6]} 5. O-O {[%clk 0:02:31.1]}
5... Bc5 {[%clk 0:03:01]} 6. c3 {[%clk 0:02:27.5]} 6... b5 {[%clk 0:03:01.3]} 7.
Bc2 {[%clk 0:02:25.3]} 7... d6 {[%clk 0:03:02.2]} 8. d4 {[%clk 0:01:58.1]} 8...
Ba7 {[%clk 0:03:02.7]} 9. a4 {[%clk 0:01:57.6]} 9... Bb7 {[%clk 0:02:46.9]} 10.
h3 {[%clk 0:01:28.8]} 10... h6 {[%clk 0:02:43.4]} 11. Na3 {[%clk 0:01:23.2]}
11... Bb6 {[%clk 0:02:33.2]} 12. Be3 {[%clk 0:01:18.2]} 12... O-O {[%clk
0:02:31.4]} 13. axb5 {[%clk 0:00:52.9]} 13... axb5 {[%clk 0:02:32.3]} 14. Nxb5
{[%clk 0:00:53.3]} 14... Rxa1 {[%clk 0:02:30.4]} 15. Qxa1 {[%clk 0:00:53]} 15...
exd4 {[%clk 0:02:31.3]} 16. Nfxd4 {[%clk 0:00:37.6]} 16... Nxd4 {[%clk
0:02:30.1]} 17. Bxd4 {[%clk 0:00:36.8]} 17... Bxd4 {[%clk 0:02:28.4]} 18. Nxd4
{[%clk 0:00:37.4]} 18... Bxe4 {[%clk 0:02:27.7]} 19. Bxe4 {[%clk 0:00:35.7]}
19... Nxe4 {[%clk 0:02:28.6]} 20. Re1 {[%clk 0:00:35.4]} 20... Re8 {[%clk
0:02:28.6]} 21. Qa4 {[%clk 0:00:28]} 21... Nf6 {[%clk 0:02:25.8]} 22. Rxe8+
{[%clk 0:00:19.3]} 22... Qxe8 {[%clk 0:02:26.7]} 23. Qxe8+ {[%clk 0:00:18.7]}
23... Nxe8 {[%clk 0:02:27.5]} 24. f4 {[%clk 0:00:17.4]} 24... g6 {[%clk
0:02:25.4]} 25. Kf2 {[%clk 0:00:17.9]} 25... Kf8 {[%clk 0:02:22.2]} 26. b4
{[%clk 0:00:15.8]} 26... Ke7 {[%clk 0:02:18.4]} 27. Kf3 {[%clk 0:00:15.3]} 27...
d5 {[%clk 0:02:15.4]} 28. g4 {[%clk 0:00:15.4]} 28... Kd6 {[%clk 0:02:11.9]} 29.
h4 {[%clk 0:00:13.1]} 29... Nf6 {[%clk 0:02:07.8]} 30. h5 {[%clk 0:00:10.6]}
30... gxh5 {[%clk 0:02:01.5]} 31. Nf5+ {[%clk 0:00:10.8]} 31... Ke6 {[%clk
0:01:54.2]} 32. Ng7+ {[%clk 0:00:10.7]} 32... Kd6 {[%clk 0:01:52.2]} 33. gxh5
{[%clk 0:00:09.2]} 33... Kc6 {[%clk 0:01:48.3]} 34. Nf5 {[%clk 0:00:08.4]} 34...
Nxh5 {[%clk 0:01:46.8]} 35. Nxh6 {[%clk 0:00:08.9]} 35... Kb5 {[%clk 0:01:45.8]}
36. Nxf7 {[%clk 0:00:08.4]} 36... Kc4 {[%clk 0:01:44.4]} 37. Kg4 {[%clk
0:00:08.8]} 37... Nf6+ {[%clk 0:01:37]} 38. Kf5 {[%clk 0:00:08.7]} 38... Ne4
{[%clk 0:01:32.5]} 39. Ke5 {[%clk 0:00:05]} 39... Nxc3 {[%clk 0:01:30.9]} 40. f5
{[%clk 0:00:05.6]} 40... d4 {[%clk 0:01:31.4]} 41. f6 {[%clk 0:00:05.5]} 41...
d3 {[%clk 0:01:31.8]} 42. Ng5 {[%clk 0:00:02.1]} 42... d2 {[%clk 0:01:30.3]} 43.
f7 {[%clk 0:00:02.6]} 43... d1=Q {[%clk 0:01:28.4]} 44. f8=Q {[%clk 0:00:03.2]}
44... Qd4+ {[%clk 0:01:18.7]} 45. Ke6 {[%clk 0:00:01.4]} 45... Qd5+ {[%clk
0:01:14]} 46. Kf6 {[%clk 0:00:02]} 46... Qd6+ {[%clk 0:01:00.2]} 47. Ne6 {[%clk
0:00:02.5]} 47... Ne4+ {[%clk 0:00:36.2]} 48. Kf5 {[%clk 0:00:02.6]} 48... Qd5+
{[%clk 0:00:36.7]} 49. Kf4 {[%clk 0:00:01.8]} 49... Qxe6 {[%clk 0:00:37.2]} 50.
Qc8 {[%clk 0:00:01.6]} 50... Qxc8 {[%clk 0:00:36.1]} 51. Kxe4 {[%clk 0:00:01.9]}
0-1

[Event "Late-Titled-Tuesday-Blitz-June-25-2024"]
[Site "Chess.com"]
[Date "2024.06.25"]
[Round "7"]
[White "LidongW"]
[Black "ErikRonka"]
[Result "0-1"]
[WhiteElo "2339"]
[BlackElo "2492"]
[TimeControl "180+1"]
[EndTime "15:16:35 PDT"]
[Termination "ErikRonka won on time"]

1. e4 {[%clk 0:03:00.9]} 1... g6 {[%clk 0:02:58.7]} 2. d4 {[%clk 0:03:00.9]}
2... Bg7 {[%clk 0:02:59]} 3. Nc3 {[%clk 0:03:00.6]} 3... c6 {[%clk 0:02:59.2]}
4. f4 {[%clk 0:03:00.8]} 4... d5 {[%clk 0:02:59.4]} 5. e5 {[%clk 0:02:59.9]}
5... Nh6 {[%clk 0:02:59.9]} 6. Nf3 {[%clk 0:02:59.8]} 6... f6 {[%clk 0:03:00.4]}
7. Bd3 {[%clk 0:02:58.9]} 7... O-O {[%clk 0:02:56.8]} 8. Bd2 {[%clk 0:02:55.8]}
8... Bg4 {[%clk 0:02:57.2]} 9. O-O {[%clk 0:02:41.6]} 9... fxe5 {[%clk
0:02:56.4]} 10. fxe5 {[%clk 0:02:29.8]} 10... Nf5 {[%clk 0:02:54.3]} 11. Ne2
{[%clk 0:02:25]} 11... c5 {[%clk 0:02:44.2]} 12. dxc5 {[%clk 0:02:13]} 12...
Bxf3 {[%clk 0:02:42.9]} 13. Rxf3 {[%clk 0:02:12.4]} 13... Bxe5 {[%clk
0:02:43.1]} 14. Qf1 {[%clk 0:01:52]} 14... e6 {[%clk 0:02:35.7]} 15. Re1 {[%clk
0:01:43.3]} 15... Nc6 {[%clk 0:02:32.2]} 16. c3 {[%clk 0:01:38.2]} 16... a5
{[%clk 0:02:29.3]} 17. Nf4 {[%clk 0:01:24.9]} 17... Qd7 {[%clk 0:02:23.7]} 18.
g3 {[%clk 0:01:17.5]} 18... Rae8 {[%clk 0:02:21.7]} 19. Bb5 {[%clk 0:01:02.1]}
19... Bxf4 {[%clk 0:02:20.9]} 20. Bxf4 {[%clk 0:00:58.5]} 20... d4 {[%clk
0:02:06.1]} 21. Rd3 {[%clk 0:00:58.5]} 21... Qd5 {[%clk 0:02:04.8]} 22. cxd4
{[%clk 0:00:48.5]} 22... Nfxd4 {[%clk 0:02:01.2]} 23. Bxc6 {[%clk 0:00:47.6]}
23... bxc6 {[%clk 0:01:58.3]} 24. Qf2 {[%clk 0:00:47.9]} 24... e5 {[%clk
0:01:55.5]} 25. Red1 {[%clk 0:00:44.3]} 25... Qxc5 {[%clk 0:01:21.3]} 26. Qe3
{[%clk 0:00:36.4]} 26... Qb5 {[%clk 0:00:26.2]} 27. Bh6 {[%clk 0:00:10]} 27...
Nf5 {[%clk 0:00:26.2]} 28. Qd2 {[%clk 0:00:07.5]} 28... Rf7 {[%clk 0:00:24.6]}
29. Rd7 {[%clk 0:00:05.8]} 29... Qc5+ {[%clk 0:00:23.6]} 30. Kh1 {[%clk
0:00:05.6]} 30... Rfe7 {[%clk 0:00:20.7]} 31. Rxe7 {[%clk 0:00:05.6]} 31... Qxe7
{[%clk 0:00:21.6]} 32. Bg5 {[%clk 0:00:06]} 32... Qe6 {[%clk 0:00:20.3]} 33.
Qxa5 {[%clk 0:00:05.8]} 33... e4 {[%clk 0:00:19.6]} 34. Qa7 {[%clk 0:00:04.9]}
34... e3 {[%clk 0:00:19.4]} 35. Re1 {[%clk 0:00:05.1]} 35... Qe4+ {[%clk
0:00:18.5]} 36. Kg1 {[%clk 0:00:05.6]} 36... Nd4 {[%clk 0:00:15.1]} 37. Rxe3
{[%clk 0:00:04.9]} 37... Qb1+ {[%clk 0:00:11.3]} 38. Kg2 {[%clk 0:00:05.1]}
38... Rf8 {[%clk 0:00:09.5]} 39. Kh3 {[%clk 0:00:01.2]} 39... Qf1+ {[%clk
0:00:08.7]} 0-1